fUSD/lending_fUSD_20250602
["ID","MTS","AMOUNT","RATE_DAILY","PERIOD"]
[363762873,1748865043769,-249.6,0.00019315,2]
[363762875,1748865043778,-9868.63,0.00019315,2]
[363762878,1748865043788,-445.94,0.00019315,2]
[363762879,1748865043797,-670.63,0.00019315,2]
[363762881,1748865043807,-420.0,0.00019315,2]
[363762883,1748865043816,-420.0,0.00019315,2]
[363762885,1748865043826,-420.0,0.00019315,2]
[363762887,1748865043835,-540.4,0.00019315,2]
[363762889,1748865043845,-420.0,0.00019315,2]
[363762891,1748865043854,-420.0,0.00019315,2]
[363762893,1748865043864,-974.34,0.00019315,2]
[363762895,1748865043874,-420.0,0.00019315,2]
[363762897,1748865043883,-509.16,0.00019315,2]
[363762899,1748865043893,-2185.98,0.00019315,2]
[363762902,1748865043902,-420.0,0.00019315,2]
[363762904,1748865043912,-3477.74,0.00019315,2]
[363762906,1748865043922,-759.85,0.00019315,2]
[363762908,1748865043931,-246.62556347,0.00019315,2]
[363762910,1748865043940,-420.0,0.00019315,2]
[363762912,1748865043949,-420.0,0.00019315,2]
[363762919,1748865044007,-420.0,0.00019315,2]
[363762921,1748865044017,-420.0,0.00019315,2]
[363762923,1748865044026,-420.0,0.00019315,2]
[363762925,1748865044035,-420.0,0.00019315,2]
[363762927,1748865044044,-152.2,0.00019315,2]
[363762928,1748865044053,-420.0,0.00019315,2]
[363762930,1748865044062,-420.0,0.00019315,2]
[363762932,1748865044071,-453.84,0.00019315,2]
[363762934,1748865044081,-420.0,0.00019315,2]
[363762936,1748865044091,-420.0,0.00019315,2]
[363762938,1748865044101,-324.67310921,0.00019315,2]
[363762940,1748865044110,-420.0,0.00019315,2]
[363762942,1748865044118,-420.0,0.00019315,2]
[363762944,1748865044127,-420.0,0.00019315,2]
[363762946,1748865044137,-420.0,0.00019315,2]
[363762948,1748865044146,-290.6,0.00019315,2]
[363762950,1748865044156,-488.1863566,0.00019315,2]
[363762952,1748865044166,-420.0,0.00019315,2]
[363762954,1748865044176,-420.0,0.00019315,2]
[363762956,1748865044185,-316.48,0.00019315,2]
[363762958,1748865044194,-420.0,0.00019315,2]
[363762960,1748865044204,-818.91,0.00019315,2]
[363762962,1748865044214,-420.0,0.00019315,2]
[363762964,1748865044223,-420.0,0.00019315,2]
[363762966,1748865044232,-420.0,0.00019315,2]
[363762968,1748865044243,-420.0,0.00019315,2]
[363762970,1748865044252,-420.0,0.00019315,2]
[363762972,1748865044262,-420.0,0.00019315,2]
[363762974,1748865044271,-2341.84,0.00019315,2]
[363762976,1748865044280,-420.0,0.00019315,2]
[363762978,1748865044289,-420.0,0.00019315,2]
[363762980,1748865044298,-420.0,0.00019315,2]
[363762982,1748865044307,-420.0,0.00019315,2]
[363762984,1748865044317,-420.0,0.00019315,2]
[363762986,1748865044326,-420.0,0.00019315,2]
[363762988,1748865044339,-420.0,0.00019315,2]
[363762990,1748865044348,-420.0,0.00019315,2]
[363762992,1748865044357,-420.0,0.00019315,2]
[363762994,1748865044367,-420.0,0.00019315,2]
[363762996,1748865044376,-844.62,0.00019315,2]
[363762998,1748865044386,-436.04,0.00019315,2]
[363763000,1748865044395,-420.0,0.00019315,2]
[363763002,1748865044405,-420.0,0.00019315,2]
[363763004,1748865044414,-563.39,0.00019315,2]
[363763006,1748865044423,-420.0,0.00019315,2]
[363763008,1748865044432,-420.0,0.00019315,2]
[363763010,1748865044441,-420.0,0.00019315,2]
[363763012,1748865044451,-498.55,0.00019315,2]
[363763014,1748865044460,-420.0,0.00019315,2]
[363763016,1748865044470,-480.25,0.00019315,2]
[363763018,1748865044479,-156.98,0.00019315,2]
[363763020,1748865044488,-420.0,0.00019315,2]
[363763022,1748865044497,-420.0,0.00019315,2]
[363763024,1748865044507,-420.0,0.00019315,2]
[363763026,1748865044517,-420.0,0.00019315,2]
[363763028,1748865044526,-420.0,0.00019315,2]
[363763030,1748865044535,-420.0,0.00019315,2]
[363763032,1748865044544,-420.0,0.00019315,2]
[363763034,1748865044554,-420.0,0.00019315,2]
[363763036,1748865044563,-420.0,0.00019315,2]
[363763038,1748865044573,-420.0,0.00019315,2]
[363763040,1748865044582,-420.0,0.00019315,2]
[363763042,1748865044592,-420.0,0.00019315,2]
[363763044,1748865044602,-1178.88,0.00019315,2]
[363763046,1748865044611,-420.0,0.00019315,2]
[363763048,1748865044621,-420.0,0.00019315,2]
[363763050,1748865044630,-420.0,0.00019315,2]
[363763052,1748865044639,-420.0,0.00019315,2]
[363763054,1748865044648,-420.0,0.00019315,2]
[363763056,1748865044658,-420.0,0.00019315,2]
[363763057,1748865044667,-457.27,0.00019315,2]
[363763059,1748865044680,-420.0,0.00019315,2]
[363763061,1748865044689,-420.0,0.00019315,2]
[363763063,1748865044699,-420.0,0.00019315,2]
[363763065,1748865044708,-420.0,0.00019315,2]
[363763067,1748865044718,-420.0,0.00019315,2]
[363763069,1748865044728,-420.0,0.00019315,2]
[363763071,1748865044738,-420.0,0.00019315,2]
[363763073,1748865044750,-420.0,0.00019315,2]
[363763075,1748865044760,-420.0,0.00019315,2]
[363763077,1748865044769,-420.0,0.00019315,2]
[363763079,1748865044779,-420.0,0.00019315,2]
[363763081,1748865044788,-420.0,0.00019315,2]
[363763083,1748865044798,-420.0,0.00019315,2]
[363763085,1748865044808,-170.34,0.00019315,2]
[363763087,1748865044818,-420.0,0.00019315,2]
[363763089,1748865044827,-420.0,0.00019315,2]
[363763091,1748865044839,-420.0,0.00019315,2]
[363763093,1748865044850,-420.0,0.00019315,2]
[363763095,1748865044861,-420.0,0.00019315,2]
[363763097,1748865044870,-420.0,0.00019315,2]
[363763099,1748865044881,-956.69,0.00019315,2]
[363763100,1748865044890,-420.0,0.00019315,2]
[363763101,1748865044899,-420.0,0.00019315,2]
[363763102,1748865044909,-420.0,0.00019315,2]
[363763103,1748865044918,-1708.73,0.00019315,2]
[363763104,1748865044927,-420.0,0.00019315,2]
[363763105,1748865044937,-488.52,0.00019315,2]
[363763106,1748865044947,-1440.7,0.00019315,2]
[363763107,1748865044956,-420.0,0.00019315,2]
[363763108,1748865044966,-399.98,0.00019315,2]
[363763110,1748865044975,-522.24,0.00019315,2]
[363763112,1748865044984,-420.0,0.00019315,2]
[363763114,1748865044994,-420.0,0.00019315,2]
[363763116,1748865045003,-420.0,0.00019315,2]
[363763118,1748865045012,-617.44,0.00019315,2]
[363763120,1748865045021,-420.0,0.00019315,2]
[363763122,1748865045031,-1961.9,0.00019315,2]
[363763123,1748865045040,-774.13,0.00019315,2]
[363763125,1748865045049,-535.76772308,0.00019315,2]
[363763127,1748865045059,-420.0,0.00019315,2]
[363763129,1748865045068,-420.0,0.00019315,2]
[363763132,1748865045077,-420.0,0.00019315,2]
[363763133,1748865045088,-420.0,0.00019315,2]
[363763136,1748865045099,-837.65,0.00019315,2]
[363763138,1748865045108,-1699.06,0.00019315,2]
[363763140,1748865045118,-420.0,0.00019315,2]
[363763142,1748865045128,-2017.09,0.00019315,2]
[363763143,1748865045137,-420.0,0.00019315,2]
[363763145,1748865045147,-420.0,0.00019315,2]
[363763147,1748865045156,-210.92,0.00019315,2]
[363763149,1748865045165,-420.0,0.00019315,2]
[363763151,1748865045175,-1106.96,0.00019315,2]
[363763153,1748865045185,-420.0,0.00019315,2]
[363763155,1748865045195,-420.0,0.00019315,2]
[363763158,1748865045205,-420.0,0.00019315,2]
[363763159,1748865045214,-420.0,0.00019315,2]
[363763162,1748865045223,-420.0,0.00019315,2]
[363763163,1748865045233,-420.0,0.00019315,2]
[363763165,1748865045242,-420.0,0.00019315,2]
[363763167,1748865045252,-420.0,0.00019315,2]
[363763169,1748865045262,-420.0,0.00019315,2]
[363763171,1748865045271,-1093.84,0.00019315,2]
[363763173,1748865045280,-420.0,0.00019315,2]
[363763175,1748865045290,-420.0,0.00019315,2]
[363763177,1748865045299,-420.0,0.00019315,2]
[363763179,1748865045308,-420.0,0.00019315,2]
[363763181,1748865045318,-448.58,0.00019315,2]
[363763183,1748865045327,-420.0,0.00019315,2]
[363763185,1748865045338,-420.0,0.00019315,2]
[363763187,1748865045348,-420.0,0.00019315,2]
[363763189,1748865045358,-1059.58,0.00019315,2]
[363763191,1748865045367,-420.0,0.00019315,2]
[363763193,1748865045377,-420.0,0.00019315,2]
[363763195,1748865045386,-502.94,0.00019315,2]
[363763197,1748865045395,-420.0,0.00019315,2]
[363763199,1748865045405,-175.727454,0.00019315,2]
[363763201,1748865045415,-420.0,0.00019315,2]
[363763203,1748865045424,-2309.26,0.00019315,2]
[363763205,1748865045434,-420.0,0.00019315,2]
[363763207,1748865045444,-808.61,0.00019315,2]
[363763209,1748865045453,-420.0,0.00019315,2]
[363763211,1748865045463,-420.0,0.00019315,2]
[363763213,1748865045472,-5992.83,0.00019315,2]
[363763215,1748865045481,-879.77,0.00019315,2]
[363763217,1748865045492,-420.0,0.00019315,2]
[363763219,1748865045502,-1107.93,0.00019315,2]
[363763221,1748865045511,-420.0,0.00019315,2]
[363763223,1748865045520,-420.0,0.00019315,2]
[363763225,1748865045530,-420.0,0.00019315,2]
[363763227,1748865045539,-420.0,0.00019315,2]
[363763229,1748865045549,-420.0,0.00019315,2]
[363763231,1748865045558,-420.0,0.00019315,2]
[363763233,1748865045568,-420.0,0.00019315,2]
[363763235,1748865045580,-420.0,0.00019315,2]
[363763237,1748865045590,-420.0,0.00019315,2]
[363763239,1748865045599,-420.0,0.00019315,2]
[363763241,1748865045608,-420.0,0.00019315,2]
[363763243,1748865045618,-420.0,0.00019315,2]
[363763245,1748865045627,-420.0,0.00019315,2]
[363763247,1748865045637,-617.61,0.00019315,2]
[363763249,1748865045648,-150.0,0.00019316,4]
[363763251,1748865045657,-150.0,0.00019333,4]
[363763253,1748865045668,-150.0,0.00019333,4]
[363763255,1748865045681,-150.0,0.00019347,4]
[363763257,1748865045691,-8805.2203035,0.00019352,2]
[363763259,1748865045701,-2626.5278,0.00019352,2]
[363763261,1748865045711,-150.0,0.00019368,4]
[363763263,1748865045721,-150.0,0.00019385,4]
[363763265,1748865045730,-150.0,0.00019388,4]
[363763267,1748865045740,-150.0,0.000194,4]
[363763269,1748865045751,-150.0,0.000194,4]
[363763271,1748865045762,-1700.0,0.000194,7]
[363763273,1748865045772,-160.03898451,0.00019401,2]
[363763275,1748865045781,-150.0,0.00019421,4]
[363763277,1748865045791,-150.0,0.00019429,4]
[363763279,1748865045801,-8805.2203035,0.00019443,2]
[363763281,1748865045812,-486.71878704,0.00019451,2]
[363763283,1748865045822,-284.78,0.00019452,2]
[363763285,1748865045831,-420.0,0.00019452,2]
[363763287,1748865045841,-420.0,0.00019452,2]
[363763289,1748865045851,-420.0,0.00019452,2]
[363763291,1748865045861,-420.0,0.00019452,2]
[363763293,1748865045871,-420.0,0.00019452,2]
[363763295,1748865045881,-420.0,0.00019452,2]
[363763297,1748865045891,-420.0,0.00019452,2]
[363763299,1748865045900,-420.0,0.00019452,2]
[363763301,1748865045910,-420.0,0.00019452,2]
[363763303,1748865045920,-420.0,0.00019452,2]
[363763305,1748865045930,-276.38836832,0.00019452,2]
[363763307,1748865045939,-420.0,0.00019452,2]
[363763309,1748865045949,-420.0,0.00019452,2]
[363763311,1748865045960,-420.0,0.00019452,2]
[363763313,1748865045971,-420.0,0.00019452,2]
[363763315,1748865045981,-420.0,0.00019452,2]
[363763317,1748865045991,-420.0,0.00019452,2]
[363763319,1748865046001,-420.0,0.00019452,2]
[363763321,1748865046010,-299.0,0.00019452,2]
[363763323,1748865046021,-420.0,0.00019452,2]
[363763325,1748865046031,-420.0,0.00019452,2]
[363763327,1748865046041,-420.0,0.00019452,2]
[363763329,1748865046051,-420.0,0.00019452,2]
[363763331,1748865046060,-420.0,0.00019452,2]
[363763333,1748865046071,-420.0,0.00019452,2]
[363763335,1748865046081,-420.0,0.00019452,2]
[363763337,1748865046091,-420.0,0.00019452,2]
[363763339,1748865046100,-420.0,0.00019452,2]
[363763342,1748865046110,-420.0,0.00019452,2]
[363763344,1748865046119,-420.0,0.00019452,2]
[363763346,1748865046129,-420.0,0.00019452,2]
[363763348,1748865046138,-420.0,0.00019452,2]
[363763350,1748865046148,-420.0,0.00019452,2]
[363763352,1748865046158,-420.0,0.00019452,2]
[363763354,1748865046168,-456.0799874,0.00019452,2]
[363763356,1748865046177,-420.0,0.00019452,2]
[363763358,1748865046187,-420.0,0.00019452,2]
[363763360,1748865046196,-420.0,0.00019452,2]
[363763362,1748865046206,-420.0,0.00019452,2]
[363763364,1748865046216,-420.0,0.00019452,2]
[363763366,1748865046225,-420.0,0.00019452,2]
[363763368,1748865046235,-506.04,0.00019452,2]
[363763370,1748865046244,-420.0,0.00019452,2]
[363763372,1748865046254,-420.0,0.00019452,2]
[363763374,1748865046263,-420.0,0.00019452,2]
[363763376,1748865046272,-420.0,0.00019452,2]
[363763378,1748865046282,-420.0,0.00019452,2]
[363763380,1748865046292,-227.48,0.00019452,2]
[363763382,1748865046302,-420.0,0.00019452,2]
[363763384,1748865046312,-420.0,0.00019452,2]
[363763386,1748865046322,-420.0,0.00019452,2]
[363763388,1748865046333,-420.0,0.00019452,2]
[363763390,1748865046343,-420.0,0.00019452,2]
[363763392,1748865046353,-420.0,0.00019452,2]
[363763394,1748865046363,-420.0,0.00019452,2]
[363763396,1748865046373,-212.24,0.00019452,2]
[363763398,1748865046382,-420.0,0.00019452,2]
[363763400,1748865046392,-420.0,0.00019452,2]
[363763402,1748865046402,-271.169634,0.00019452,2]
[363763404,1748865046411,-420.0,0.00019452,2]
[363763406,1748865046421,-471.94,0.00019452,2]
[363763408,1748865046431,-420.0,0.00019452,2]
[363763410,1748865046440,-420.0,0.00019452,2]
[363763412,1748865046450,-420.0,0.00019452,2]
[363763414,1748865046459,-420.0,0.00019452,2]
[363763415,1748865046469,-420.0,0.00019452,2]
[363763417,1748865046478,-420.0,0.00019452,2]
[363763420,1748865046490,-508.88004193,0.00019452,2]
[363763422,1748865046500,-242.0,0.00019452,2]
[363763424,1748865046509,-420.0,0.00019452,2]
[363763425,1748865046519,-420.0,0.00019452,2]
[363763427,1748865046529,-420.0,0.00019452,2]
[363763429,1748865046539,-420.0,0.00019452,2]
[363763431,1748865046549,-420.0,0.00019452,2]
[363763433,1748865046558,-420.0,0.00019452,2]
[363763435,1748865046568,-420.0,0.00019452,2]
[363763437,1748865046577,-420.0,0.00019452,2]
[363763439,1748865046589,-420.0,0.00019452,2]
[363763441,1748865046598,-420.0,0.00019452,2]
[363763443,1748865046608,-420.0,0.00019452,2]
[363763445,1748865046618,-420.0,0.00019452,2]
[363763448,1748865046628,-248.88,0.00019452,2]
[363763450,1748865046638,-420.0,0.00019452,2]
[363763452,1748865046648,-420.0,0.00019452,2]
[363763454,1748865046658,-420.0,0.00019452,2]
[363763457,1748865046669,-420.0,0.00019452,2]
[363763458,1748865046681,-420.0,0.00019452,2]
[363763461,1748865046692,-420.0,0.00019452,2]
[363763462,1748865046702,-420.0,0.00019452,2]
[363763465,1748865046713,-420.0,0.00019452,2]
[363763467,1748865046723,-420.0,0.00019452,2]
[363763469,1748865046733,-433.68347965,0.00019452,2]
[363763471,1748865046743,-218.1,0.00019452,2]
[363763472,1748865046755,-420.0,0.00019452,2]
[363763473,1748865046765,-245.52,0.00019452,2]
[363763474,1748865046775,-515.54,0.00019452,2]
[363763475,1748865046785,-420.0,0.00019452,2]
[363763476,1748865046794,-211.8,0.00019452,2]
[363763477,1748865046803,-420.0,0.00019452,2]
[363763478,1748865046812,-420.0,0.00019452,2]
[363763479,1748865046821,-420.0,0.00019452,2]
[363763480,1748865046832,-180.56,0.00019452,2]
[363763482,1748865046842,-420.0,0.00019452,2]
[363763484,1748865046852,-420.0,0.00019452,2]
[363763486,1748865046861,-420.0,0.00019452,2]
[363763488,1748865046870,-420.0,0.00019452,2]
[363763490,1748865046880,-943.19,0.00019452,2]
[363763492,1748865046890,-233.34,0.00019452,2]
[363763494,1748865046900,-420.0,0.00019452,2]
[363763496,1748865046910,-420.0,0.00019452,2]
[363763498,1748865046919,-1207.47,0.00019452,2]
[363763500,1748865046929,-420.0,0.00019452,2]
[363763502,1748865046938,-1158.28,0.00019452,2]
[363763504,1748865046948,-420.0,0.00019452,2]
[363763506,1748865046958,-869.74,0.00019452,2]
[363763508,1748865046967,-420.0,0.00019452,2]
[363763510,1748865046976,-420.0,0.00019452,2]
[363763512,1748865046986,-420.0,0.00019452,2]
[363763514,1748865046995,-420.0,0.00019452,2]
[363763516,1748865047005,-420.0,0.00019452,2]
[363763518,1748865047014,-420.0,0.00019452,2]
[363763520,1748865047024,-420.0,0.00019452,2]
[363763522,1748865047034,-420.0,0.00019452,2]
[363763524,1748865047044,-437.32,0.00019452,2]
[363763526,1748865047054,-1265.39,0.00019452,2]
[363763528,1748865047064,-640.07,0.00019452,2]
[363763530,1748865047073,-449.92,0.00019452,2]
[363763532,1748865047084,-420.0,0.00019452,2]
[363763534,1748865047094,-663.41,0.00019452,2]
[363763536,1748865047103,-9868.63,0.00019452,2]
[363763538,1748865047112,-670.63,0.00019452,2]
[363763540,1748865047122,-482.83,0.00019452,2]
[363763542,1748865047132,-420.0,0.00019452,2]
[363763544,1748865047141,-420.0,0.00019452,2]
[363763546,1748865047151,-420.0,0.00019452,2]
[363763548,1748865047161,-974.34,0.00019452,2]
[363763549,1748865047170,-420.0,0.00019452,2]
[363763552,1748865047180,-2185.98,0.00019452,2]
[363763554,1748865047191,-385.3,0.00019452,2]
[363763556,1748865047200,-3477.74,0.00019452,2]
[363763558,1748865047210,-759.85,0.00019452,2]
[363763560,1748865047220,-420.0,0.00019452,2]
[363763562,1748865047230,-420.0,0.00019452,2]
[363763564,1748865047240,-420.0,0.00019452,2]
[363763566,1748865047249,-420.0,0.00019452,2]
[363763568,1748865047259,-420.0,0.00019452,2]
[363763570,1748865047269,-420.0,0.00019452,2]
[363763572,1748865047278,-420.0,0.00019452,2]
[363763574,1748865047288,-420.0,0.00019452,2]
[363763576,1748865047298,-453.84,0.00019452,2]
[363763578,1748865047308,-420.0,0.00019452,2]
[363763580,1748865047318,-420.0,0.00019452,2]
[363763582,1748865047327,-420.0,0.00019452,2]
[363763584,1748865047341,-420.0,0.00019452,2]
[363763586,1748865047350,-420.0,0.00019452,2]
[363763588,1748865047361,-420.0,0.00019452,2]
[363763590,1748865047371,-420.0,0.00019452,2]
[363763592,1748865047381,-420.0,0.00019452,2]
[363763594,1748865047391,-420.0,0.00019452,2]
[363763596,1748865047401,-818.91,0.00019452,2]
[363763598,1748865047411,-420.0,0.00019452,2]
[363763600,1748865047421,-266.87763992,0.00019452,2]
[363763602,1748865047430,-420.0,0.00019452,2]
[363763604,1748865047440,-420.0,0.00019452,2]
[363763606,1748865047450,-420.0,0.00019452,2]
[363763608,1748865047460,-2341.84,0.00019452,2]
[363763610,1748865047470,-506.74,0.00019452,2]
[363763612,1748865047479,-420.0,0.00019452,2]
[363763614,1748865047489,-383.69986403,0.00019452,2]
[363763616,1748865047500,-420.0,0.00019452,2]
[363763619,1748865047510,-420.0,0.00019452,2]
[363763621,1748865047522,-420.0,0.00019452,2]
[363763623,1748865047532,-420.0,0.00019452,2]
[363763625,1748865047542,-420.0,0.00019452,2]
[363763627,1748865047551,-844.62,0.00019452,2]
[363763629,1748865047561,-420.0,0.00019452,2]
[363763631,1748865047570,-420.0,0.00019452,2]
[363763633,1748865047580,-563.39,0.00019452,2]
[363763635,1748865047590,-420.0,0.00019452,2]
[363763637,1748865047600,-420.0,0.00019452,2]
[363763639,1748865047610,-480.25,0.00019452,2]
[363763641,1748865047619,-420.0,0.00019452,2]
[363763643,1748865047629,-420.0,0.00019452,2]
[363763645,1748865047639,-420.0,0.00019452,2]
[363763647,1748865047650,-420.0,0.00019452,2]
[363763649,1748865047660,-420.0,0.00019452,2]
[363763651,1748865047674,-420.0,0.00019452,2]
[363763653,1748865047684,-420.0,0.00019452,2]
[363763655,1748865047693,-420.0,0.00019452,2]
[363763657,1748865047702,-420.0,0.00019452,2]
[363763659,1748865047714,-420.0,0.00019452,2]
[363763661,1748865047724,-420.0,0.00019452,2]
[363763663,1748865047734,-188.84,0.00019452,2]
[363763665,1748865047744,-1178.88,0.00019452,2]
[363763667,1748865047754,-420.0,0.00019452,2]
[363763669,1748865047764,-420.0,0.00019452,2]
[363763671,1748865047773,-420.0,0.00019452,2]
[363763673,1748865047783,-420.0,0.00019452,2]
[363763675,1748865047794,-420.0,0.00019452,2]
[363763677,1748865047803,-420.0,0.00019452,2]
[363763679,1748865047813,-420.0,0.00019452,2]
[363763680,1748865047823,-420.0,0.00019452,2]
[363763681,1748865047833,-420.0,0.00019452,2]
[363763682,1748865047843,-420.0,0.00019452,2]
[363763683,1748865047853,-420.0,0.00019452,2]
[363763687,1748865048027,-420.0,0.00019452,2]
[363763688,1748865048038,-420.0,0.00019452,2]
[363763690,1748865048047,-420.0,0.00019452,2]
[363763692,1748865048057,-420.0,0.00019452,2]
[363763694,1748865048066,-420.0,0.00019452,2]
[363763696,1748865048076,-420.0,0.00019452,2]
[363763697,1748865048088,-420.0,0.00019452,2]
[363763698,1748865048097,-420.0,0.00019452,2]
[363763699,1748865048108,-420.0,0.00019452,2]
[363763700,1748865048118,-956.69,0.00019452,2]
[363763701,1748865048129,-420.0,0.00019452,2]
[363763702,1748865048139,-420.0,0.00019452,2]
[363763703,1748865048149,-1708.73,0.00019452,2]
[363763704,1748865048158,-488.52,0.00019452,2]
[363763705,1748865048168,-374.14,0.00019452,2]
[363763706,1748865048178,-1440.7,0.00019452,2]
[363763707,1748865048188,-420.0,0.00019452,2]
[363763708,1748865048197,-420.0,0.00019452,2]
[363763709,1748865048207,-420.0,0.00019452,2]
[363763710,1748865048217,-617.44,0.00019452,2]
[363763711,1748865048226,-420.0,0.00019452,2]
[363763712,1748865048236,-774.13,0.00019452,2]
[363763713,1748865048246,-1961.9,0.00019452,2]
[363763714,1748865048257,-304.66108688,0.00019452,2]
[363763715,1748865048266,-420.0,0.00019452,2]
[363763716,1748865048276,-420.0,0.00019452,2]
[363763717,1748865048287,-420.0,0.00019452,2]
[363763718,1748865048296,-837.65,0.00019452,2]
[363763719,1748865048307,-1699.06,0.00019452,2]
[363763720,1748865048317,-465.78,0.00019452,2]
[363763721,1748865048327,-2017.09,0.00019452,2]
[363763722,1748865048338,-420.0,0.00019452,2]
[363763723,1748865048348,-420.0,0.00019452,2]
[363763724,1748865048357,-420.0,0.00019452,2]
[363763725,1748865048368,-420.0,0.00019452,2]
[363763726,1748865048378,-199.25,0.00019452,2]
[363763727,1748865048387,-420.0,0.00019452,2]
[363763728,1748865048397,-495.33,0.00019452,2]
[363763729,1748865048407,-420.0,0.00019452,2]
[363763730,1748865048416,-420.0,0.00019452,2]
[363763731,1748865048426,-420.0,0.00019452,2]
[363763732,1748865048436,-420.0,0.00019452,2]
[363763733,1748865048446,-1093.84,0.00019452,2]
[363763734,1748865048457,-420.0,0.00019452,2]
[363763735,1748865048467,-420.0,0.00019452,2]
[363763736,1748865048477,-420.0,0.00019452,2]
[363763737,1748865048486,-420.0,0.00019452,2]
[363763738,1748865048496,-448.58,0.00019452,2]
[363763739,1748865048506,-420.0,0.00019452,2]
[363763740,1748865048516,-420.0,0.00019452,2]
[363763741,1748865048526,-420.0,0.00019452,2]
[363763742,1748865048536,-1059.58,0.00019452,2]
[363763743,1748865048545,-420.0,0.00019452,2]
[363763744,1748865048555,-420.0,0.00019452,2]
[363763745,1748865048565,-502.94,0.00019452,2]
[363763746,1748865048574,-464.12057613,0.00019452,2]
[363763747,1748865048585,-175.727454,0.00019452,2]
[363763748,1748865048595,-420.0,0.00019452,2]
[363763749,1748865048604,-2309.26,0.00019452,2]
[363763750,1748865048614,-420.0,0.00019452,2]
[363763751,1748865048624,-808.61,0.00019452,2]
[363763752,1748865048634,-420.0,0.00019452,2]
[363763753,1748865048643,-420.0,0.00019452,2]
[363763754,1748865048653,-5992.83,0.00019452,2]
[363763755,1748865048663,-879.77,0.00019452,2]
[363763756,1748865048675,-420.0,0.00019452,2]
[363763757,1748865048684,-1107.93,0.00019452,2]
[363763758,1748865048695,-420.0,0.00019452,2]
[363763759,1748865048704,-512.28,0.00019452,2]
[363763760,1748865048715,-420.0,0.00019452,2]
[363763761,1748865048725,-517.32,0.00019452,2]
[363763762,1748865048735,-420.0,0.00019452,2]
[363763763,1748865048745,-420.0,0.00019452,2]
[363763764,1748865048756,-420.0,0.00019452,2]
[363763765,1748865048767,-420.0,0.00019452,2]
[363763766,1748865048776,-420.0,0.00019452,2]
[363763767,1748865048787,-420.0,0.00019452,2]
[363763768,1748865048798,-420.0,0.00019452,2]
[363763769,1748865048809,-420.0,0.00019452,2]
[363763770,1748865048817,-420.0,0.00019452,2]
[363763771,1748865048826,-150.0,0.00019467,4]
[363763772,1748865048837,-150.0,0.00019469,4]
[363763773,1748865048847,-150.0,0.00019474,4]
[363763774,1748865048857,-196.4127791,0.00019496,2]
[363763775,1748865048867,-500.0,0.000195,4]
[363763776,1748865048876,-150.0,0.000195,4]